bitfinex-derivatives/quotes_SOLF0:USTF0_20250720
["timestamp","ask_amount","ask_price","bid_price","bid_amount"]
[1753035946414,3.02,180.57,180.51,4.63372788]
[1753035946717,5.5368,180.53,180.5,3.27]
[1753035946911,2.70396323,180.58,180.5,3.27]
[1753035947116,3.02,180.53,180.5,3.27]
[1753035947310,3.02,180.52,180.51,3.27]
[1753035947909,3.02,180.52,180.49,3.27]
[1753035948216,3.02,180.51,180.5,3.27]
[1753035949313,3.02,180.54,180.5,5.5375]
[1753035949518,3.02,180.54,180.49,5.97396323]
[1753035949719,2.70396323,180.57,180.5,3.27]
[1753035949919,3.02,180.53,180.5,3.27]
[1753035950116,3.02,180.58,180.52,3.27]
[1753035950320,2.70396323,180.63,180.55,2.70396323]
[1753035950516,5.5349,180.6,180.55,2.70396323]
[1753035950719,6.11230421,180.65,180.55,2.70396323]
[1753035950720,3.02,180.58,180.57,3.27]
[1753035951921,3.02,180.61,180.6,3.27]
[1753035952415,3.02,180.61,180.58,5.5353]
[1753035952617,3.02,180.61,180.6,3.27]
[1753035952817,3.02,180.61,180.58,5.5353]
[1753035953013,3.02,180.6,180.59,3.27]
[1753035953220,3.02,180.64,180.58,3.27]
[1753035953714,3.02,180.62,180.61,3.27]
[1753035954718,3.02,180.62,180.59,5.97396323]
[1753035954917,3.02,180.61,180.6,3.27]
[1753035955921,3.02,180.64,180.6,3.27]
[1753035956122,3.02,180.64,180.62,3.27]
[1753035956625,3.02,180.64,180.62,8.804]
[1753035956924,3.02,180.64,180.63,3.27]
[1753035957429,3.02,180.64,180.63,8.8038]
[1753035957927,3.02,180.66,180.63,5.5338]
[1753035958220,3.06,180.65,180.64,3.16]
[1753035960525,3.06,180.65,180.62,5.5341]
[1753035960725,3.06,180.64,180.63,3.16]
[1753035964329,5.5335,180.64,180.57,3.16]
[1753035964635,3.06,180.63,180.6,2.70396323]
[1753035964933,3.06,180.63,180.6,11.39856323]
[1753035965127,3.06,180.63,180.61,3.16]
[1753035965328,2.70396323,180.68,180.61,3.16]
[1753035965632,3.06,180.63,180.62,3.16]
[1753035966428,3.06,180.69,180.62,3.16]
[1753035966623,3.65472478,180.68,180.63,2.70396323]
[1753035966824,3.06,180.66,180.65,3.16]
[1753035969436,3.06,180.67,180.64,5.5334]
[1753035969636,3.06,180.66,180.65,3.16]
[1753035971535,3.06,180.66,180.65,8.6932]
[1753035971934,2.70396323,180.75,180.66,3.16]
[1753035972138,3.06,180.69,180.68,3.16]
[1753035975034,3.06,180.69,180.64,5.86396323]
[1753035975239,3.06,180.69,180.64,3.16]
[1753035975438,8.5921,180.69,180.65,5.533]
[1753035975632,3.06,180.68,180.65,8.693]
[1753035976331,5.5317,180.7,180.66,3.16]
[1753035976534,3.06,180.69,180.65,3.16]
[1753035976841,3.06,180.69,180.66,8.6927]
[1753035977140,3.06,180.69,180.67,3.16]
[1753035977335,3.06,180.68,180.66,3.16]
[1753035977942,3.06,180.68,180.62,5.86396323]
[1753035978540,5.5326,180.67,180.64,5.5333]
[1753035978738,3.06,180.66,180.64,8.6933]
[1753035978934,3.06,180.65,180.64,8.6933]
[1753035986650,3.06,180.74,180.65,3.16]
[1753035986851,3.64166452,180.73,180.66,2.70396323]
[1753035987148,3.64166452,180.72,180.66,2.70396323]
[1753035987349,3.06,180.71,180.68,3.16]
[1753035987546,5.5314,180.71,180.68,8.6921]
[1753035987747,3.06,180.7,180.68,8.6921]
[1753035988754,3.06,180.7,180.69,5.5319]
[1753035988950,3.06,180.7,180.68,3.16]
[1753035989553,3.06,180.7,180.69,5.5319]
[1753035990652,3.06,180.7,180.68,8.6921]
[1753035994450,3.07,180.71,180.69,8.7019]
[1753035994755,3.07,180.7,180.69,5.5319]
[1753035995749,3.07,180.7,180.69,3.17]
[1753035995954,3.07,180.7,180.68,8.7022]
[1753035998955,5.5316,180.7,180.68,8.7022]
[1753035999261,3.07,180.69,180.68,8.7022]
[1753035999958,3.07,180.69,180.68,3.17]
[1753036000152,3.07,180.68,180.62,3.17]
[1753036000351,3.66859973,180.67,180.62,8.7041]
[1753036000649,2.70396323,180.69,180.62,8.7041]
[1753036000650,5.5335,180.64,180.62,8.7041]
[1753036000849,3.07,180.63,180.62,3.17]
[1753036001050,3.67004202,180.63,180.58,2.70396323]
[1753036001252,3.07,180.62,180.61,3.17]
[1753036001453,5.5337,180.64,180.61,3.17]
[1753036001653,6.74011651,180.63,180.61,3.17]
[1753036001856,3.07,180.63,180.62,3.17]
[1753036002055,12.27391651,180.63,180.62,3.17]
[1753036004158,3.07,180.62,180.58,3.17]
[1753036004364,2.70396323,180.65,180.58,3.17]
[1753036004560,3.07,180.63,180.58,3.17]
[1753036005166,3.07,180.63,180.57,2.70396323]
[1753036005367,3.07,180.63,180.61,3.17]
[1753036005767,3.07,180.63,180.61,5.5342]
[1753036006067,3.07,180.63,180.62,3.17]
[1753036009983,3.07,180.63,180.62,8.7041]
[1753036010575,3.07,180.63,180.62,3.17]
[1753036011471,3.07,180.63,180.62,8.7041]
[1753036014873,5.533,180.66,180.64,3.17]
[1753036015374,3.07,180.65,180.64,3.17]
[1753036016473,3.07,180.65,180.63,3.17]
[1753036017476,8.6032,180.65,180.63,3.17]
[1753036017676,3.07,180.64,180.63,3.17]
[1753036017976,3.07,180.64,180.6,3.06]
[1753036018171,3.07,180.64,180.58,2.70396323]
[1753036018377,3.07,180.64,180.62,5.5339]
[1753036018677,3.07,180.64,180.63,3.06]
[1753036019679,3.23,180.66,180.63,3.06]
[1753036019878,3.23,180.7,180.65,3.06]
[1753036020081,3.23,180.68,180.65,3.06]
[1753036020282,3.23,180.68,180.67,3.06]
[1753036021782,3.23,180.68,180.63,3.06]
[1753036022180,3.23,180.68,180.65,3.06]
[1753036022783,8.7625,180.68,180.65,8.5931]
[1753036023082,3.23,180.69,180.66,2.70396323]
[1753036023281,3.23,180.69,180.67,5.5323]
[1753036023475,3.23,180.69,180.68,3.06]
[1753036024078,3.23,180.69,180.68,5.5322]
[1753036024278,3.23,180.69,180.68,8.5922]
[1753036025178,3.23,180.69,180.68,3.06]
[1753036025680,3.23,180.69,180.68,8.5922]
[1753036028085,8.7608,180.73,180.69,5.5318]
[1753036028285,3.66736503,180.75,180.7,3.06]
[1753036028485,3.23,180.71,180.7,3.06]
[1753036028682,3.23,180.71,180.7,8.5916]
[1753036030889,3.23,180.73,180.7,8.5916]
[1753036031090,3.23,180.72,180.71,3.06]
[1753036032888,3.23,180.72,180.71,8.5913]
[1753036034095,3.23,180.72,180.69,3.06]
[1753036034294,3.23,180.72,180.66,2.70396323]
[1753036034494,3.23,180.72,180.7,3.06]
[1753036034789,8.7611,180.72,180.7,8.5916]
[1753036035094,3.23,180.71,180.7,5.5316]
[1753036035291,3.23,180.71,180.66,2.70396323]
[1753036035292,3.23,180.71,180.68,5.532]
[1753036035593,3.23,180.7,180.67,3.06]
[1753036035894,3.23,180.7,180.68,8.5921]
[1753036036091,8.7617,180.7,180.66,3.06]
[1753036036291,3.23,180.69,180.67,5.5324]
[1753036036496,3.23,180.69,180.64,3.06]
[1753036036795,3.23,180.68,180.62,2.70396323]
[1753036036996,3.23,180.68,180.66,5.5327]
[1753036037189,5.5321,180.69,180.62,2.70396323]
[1753036037392,3.23,180.68,180.67,5.5325]
[1753036037893,3.23,180.68,180.67,8.5925]
[1753036038594,3.23,180.68,180.6,147.36436171]
[1753036038595,3.23,180.67,180.61,3.06]
[1753036038794,3.23,180.67,180.63,3.06]
[1753036039299,5.5326,180.67,180.63,3.06]
[1753036039491,3.23,180.66,180.62,2.70396323]
[1753036039795,3.23,180.66,180.64,8.5933]
[1753036040000,3.23,180.66,180.64,3.06]
[1753036040896,3.23,180.66,180.65,5.5332]
[1753036041599,3.23,180.66,180.65,8.5932]
[1753036044897,3.23,180.68,180.67,3.06]
[1753036046697,3.23,180.68,180.67,8.5925]
[1753036051398,5.5314,180.71,180.68,5.5319]
[1753036051598,3.08,180.69,180.68,5.5319]
[1753036052001,3.08,180.69,180.68,8.7319]
[1753036053503,3.08,180.71,180.66,3.2]
[1753036053903,3.08,180.7,180.66,3.2]
[1753036054702,3.08,180.7,180.69,8.7319]
[1753036055512,3.08,180.7,180.69,5.5319]
[1753036055707,5.5309,180.73,180.69,5.5319]
[1753036056014,3.08,180.71,180.69,5.5319]
[1753036056213,3.08,180.71,180.7,3.2]
[1753036056707,6.7385314,180.71,180.7,3.2]
[1753036057313,3.6585314,180.71,180.7,8.7316]
[1753036057715,6.7385314,180.71,180.7,8.7316]
[1753036059015,6.7385314,180.71,180.7,3.2]
[1753036059508,8.6113,180.71,180.69,5.5318]
[1753036059708,3.08,180.7,180.69,5.5318]
[1753036060119,3.08,180.7,180.69,8.7318]
[1753036062514,3.08,180.72,180.69,3.2]
[1753036062710,3.65964068,180.71,180.69,5.90396323]
[1753036062910,2.70396323,180.8,180.75,5.53]
[1753036063208,3.08,180.76,180.75,5.53]
[1753036063407,3.66109695,180.76,180.71,2.70396323]
[1753036063612,3.08,180.74,180.71,2.70396323]
[1753036063809,5.5296,180.77,180.71,2.70396323]
[1753036064008,3.08,180.76,180.74,5.5301]
[1753036064210,3.08,180.75,180.74,8.7301]
[1753036065516,3.08,180.75,180.74,3.2]
[1753036066120,5.78396323,180.75,180.67,3.2]
[1753036066312,3.08,180.71,180.69,3.2]
[1753036066518,6.11230421,180.79,180.64,7.33834433]
[1753036066721,3.08,180.73,180.68,2.70396323]
[1753036066922,3.08,180.73,180.69,3.2]
[1753036068122,3.08,180.73,180.71,5.531]
[1753036068425,3.08,180.82,180.72,3.2]
[1753036068621,3.08,180.79,180.72,3.2]
[1753036069325,3.08,180.79,180.69,4.6343811]
[1753036069326,3.08,180.77,180.73,3.2]
[1753036069519,3.08,180.77,180.74,3.2]
[1753036070624,5.5301,180.75,180.74,3.2]
[1753036070824,371.92,180.83,180.66,6.1713532]
[1753036070825,3.08,180.77,180.73,2.70396323]
[1753036071027,3.08,180.77,180.74,3.2]
[1753036071229,3.08,180.77,180.76,3.2]
[1753036072323,3.08,180.79,180.73,2.70396323]
[1753036072524,3.08,180.79,180.77,3.2]
[1753036073324,3.08,180.78,180.77,3.2]
[1753036074817,3.08,180.78,180.71,4.6343811]
[1753036074818,3.08,180.81,180.79,3.2]
[1753036075024,2.70396323,180.87,180.79,3.2]
[1753036075222,3.08,180.82,180.79,3.2]
[1753036075423,3.08,180.82,180.8,5.5284]
[1753036075625,3.08,180.82,180.81,3.2]
[1753036076325,3.08,180.82,180.81,8.7283]
[1753036077425,5.5267,180.86,180.82,5.5278]
[1753036077722,3.08,180.87,180.8,2.70396323]
[1753036078024,3.08,180.87,180.83,3.2]
[1753036078225,3.08,180.87,180.83,8.7276]
[1753036078727,3.08,180.87,180.83,5.5276]
[1753036078728,5.5266,180.87,180.83,5.5276]
[1753036079026,3.21,180.86,180.84,3.19]
[1753036079928,3.21,180.85,180.83,8.7176]
[1753036080128,3.21,180.85,180.83,3.19]
[1753036080432,3.21,180.82,180.79,3.19]
[1753036081627,3.21,180.82,180.8,5.5284]
[1753036082329,3.21,180.82,180.8,8.7184]
[1753036082730,2.70396323,180.86,180.81,5.5282]
[1753036083235,3.21,180.85,180.82,5.5279]
[1753036083431,3.21,180.85,180.8,2.70396323]
[1753036083628,3.21,180.85,180.84,5.5273]
[1753036083829,3.21,180.85,180.84,8.7173]
[1753036084229,3.21,180.95,180.83,3.19]
[1753036084729,5.5249,180.92,180.89,3.19]
[1753036084931,3.21,180.9,180.89,3.19]
[1753036086130,3.21,180.9,180.84,2.70396323]
[1753036086331,3.21,180.9,180.85,3.19]
[1753036086633,0.96212331,180.98,180.85,3.19]
[1753036086839,3.21,180.89,180.87,3.19]
[1753036087033,3.21,180.89,180.86,3.19]
[1753036087335,3.21,180.89,180.85,3.19]
[1753036087540,3.21,180.89,180.86,3.19]
[1753036087742,3.21,180.89,180.84,3.19]
[1753036088339,3.21,180.87,180.83,8.7176]
[1753036088542,3.21,180.87,180.81,3.19]
[1753036089241,3.21,180.85,180.81,3.19]
[1753036089636,3.21,180.84,180.81,3.19]
[1753036090036,3.21,180.83,180.82,3.19]
[1753036090541,5.5268,180.86,180.8,3.19]
[1753036090843,5.5271,180.85,180.82,3.19]
[1753036091036,3.21,180.83,180.82,3.19]
[1753036091237,3.21,180.85,180.82,5.5279]
[1753036091438,3.21,180.85,180.84,3.19]
[1753036091743,3.21,180.85,180.82,5.5279]
[1753036091942,3.21,180.84,180.83,3.19]
[1753036092141,3.21,180.84,180.81,8.7182]
[1753036092338,3.21,180.83,180.82,3.19]
[1753036093436,3.21,180.84,180.82,3.19]
[1753036093642,3.21,180.84,180.83,3.19]
[1753036096249,3.21,180.84,180.82,5.5279]
[1753036096250,3.21,180.83,180.82,3.19]
[1753036097241,3.21,180.83,180.81,3.19]
[1753036097442,3.21,180.91,180.81,3.19]
[1753036097641,3.21,180.87,180.81,3.19]
[1753036098048,5.5272,180.85,180.82,5.5278]
[1753036098241,3.21,180.84,180.83,3.19]
[1753036098943,3.21,180.84,180.83,8.7177]
[1753036099144,2.70396323,180.89,180.84,3.19]
[1753036099345,3.21,180.88,180.85,3.19]
[1753036099645,208.35526353,180.92,180.86,2.70396323]
[1753036099947,3.21,180.9,180.89,5.5256]
[1753036100140,3.21,180.9,180.89,8.7156]
[1753036100348,208.35526353,180.92,180.89,3.19]
[1753036100550,3.21,180.91,180.9,8.7155]
[1753036101243,208.35526353,180.92,180.91,3.19]
[1753036101244,211.56526353,180.92,180.91,3.19]
[1753036101648,3.21,180.92,180.91,3.19]
[1753036101849,5.5248,180.93,180.88,2.70396323]
[1753036102146,3.21,180.91,180.9,3.19]
[1753036102347,3.21,180.92,180.91,8.7152]
[1753036103143,371.7,181.05,180.91,8.7152]
[1753036103144,5.524,180.95,180.91,3.19]
[1753036103350,3.21,180.94,180.91,3.19]
[1753036103845,3.21,180.94,180.93,3.19]
[1753036104847,3.21,180.94,180.93,8.7146]
[1753036105046,3.21,181.03,180.92,2.70396323]
[1753036105248,3.21,181.01,180.92,2.70396323]
[1753036105448,3.21,180.98,180.95,5.5238]
[1753036105748,3.21,180.97,180.96,3.19]
[1753036108148,8.7334,180.97,180.96,3.19]
[1753036108339,3.21,180.97,180.96,3.19]
[1753036110155,3.21,180.97,180.94,5.5242]
[1753036110345,3.21,180.97,180.95,3.08]
[1753036110545,3.16,180.96,180.95,3.08]
[1753036110746,3.16,180.96,180.95,8.604]
[1753036111146,3.16,181.0,180.97,3.08]
[1753036111351,3.16,180.99,180.98,3.08]
[1753036112747,106.18396323,181.04,180.97,5.5233]
[1753036112948,3.16,180.99,180.97,5.5233]
[1753036113347,3.16,180.99,180.98,3.08]
[1753036113645,3.16,181.02,180.99,3.08]
[1753036114048,2.70396323,181.09,181.0,2.70396323]
[1753036114355,3.16,181.03,181.02,3.08]
[1753036114655,3.16,181.0,180.96,7.33799334]
[1753036114850,3.16,181.0,180.98,3.08]
[1753036115253,3.16,180.99,180.98,3.08]
[1753036117157,3.16,180.99,180.93,3.08]
[1753036119258,3.16,180.94,180.93,3.08]
[1753036120262,3.16,180.94,180.93,8.6046]
[1753036121266,3.16,180.94,180.93,3.08]
[1753036122367,3.16,180.94,180.93,8.6046]
[1753036122967,3.16,180.94,180.93,12.8704406]
[1753036123261,5.5235,180.97,180.94,5.5241]
[1753036123466,3.16,180.95,180.94,8.6041]
[1753036124366,3.16,180.96,180.95,3.08]
[1753036125766,3.16,180.96,180.94,8.6041]
[1753036125962,8.6837,180.96,180.94,3.08]
[1753036126168,3.16,180.95,180.9,106.10396323]
[1753036126369,3.16,180.95,180.92,3.08]
[1753036126569,3.16,180.93,180.92,3.08]
[1753036127165,3.16,180.93,180.91,8.605]
[1753036127566,3.16,180.93,180.9,5.5254]
[1753036128273,8.6848,180.93,180.9,8.6054]
[1753036128771,3.16,180.91,180.9,8.6054]
[1753036132071,3.16,180.91,180.9,3.08]
[1753036132273,3.16,180.91,180.89,108.9257]
[1753036132569,8.6853,180.91,180.89,3.08]
[1753036132774,3.16,180.9,180.89,3.08]
[1753036136579,8.6855,180.9,180.89,3.08]
[1753036136881,3.16,180.9,180.89,3.08]
[1753036138181,2.95,180.89,180.88,5.5261]
[1753036138689,2.95,180.89,180.88,8.7561]
[1753036139574,2.95,180.9,180.89,3.23]
[1753036139981,8.4755,180.9,180.89,3.23]
[1753036140784,2.95,180.9,180.89,3.23]
[1753036145088,2.95,180.9,180.89,8.7558]
[1753036145791,2.95,180.9,180.89,3.23]
[1753036153797,8.4755,180.9,180.89,3.23]
[1753036154098,2.95,180.89,180.83,3.23]
[1753036154293,5.527,180.85,180.83,106.63]
[1753036154487,8.477,180.85,180.84,3.23]
[1753036157595,2.95,180.85,180.82,106.61]
[1753036157795,2.95,180.85,180.82,3.23]
[1753036158689,5.5276,180.83,180.82,3.23]
[1753036158892,2.95,180.87,180.81,106.61]
[1753036159093,2.95,180.85,180.81,106.61]
[1753036160899,2.95,180.85,180.81,103.38]
[1753036161300,5.528,180.82,180.81,103.38]
[1753036161598,2.95,180.85,180.81,111.61216323]
[1753036162100,2.95,180.85,180.82,3.23]
[1753036162298,2.95,180.85,180.82,106.61]
[1753036162501,2.95,180.85,180.82,103.38]
[1753036162796,8.4771,180.85,180.83,3.23]
[1753036163296,2.95,180.84,180.81,3.23]
[1753036163696,5.5279,180.83,180.8,103.38]
[1753036163897,2.95,180.82,180.81,3.23]
[1753036164406,2.95,180.88,180.81,3.23]
[1753036164702,2.70396323,180.89,180.81,3.23]
[1753036164703,2.95,180.86,180.81,3.23]
[1753036164903,2.70396323,180.89,180.81,3.23]
[1753036164904,3.77256013,180.85,180.81,3.23]
[1753036165093,8.4775,180.84,180.81,3.23]
[1753036165294,2.95,180.83,180.81,3.23]
[1753036166100,5.5272,180.85,180.81,5.93396323]
[1753036166296,2.95,180.89,180.84,3.23]
[1753036166497,2.95,180.87,180.84,3.23]
[1753036166699,2.95,180.89,180.85,5.93396323]
[1753036166905,3.77152189,180.88,180.86,3.23]
[1753036167105,2.95,180.89,180.86,3.23]
[1753036167311,3.77090263,180.88,180.86,3.23]
[1753036167604,2.95,180.88,180.86,3.23]
[1753036167908,2.95,180.89,180.86,3.23]
[1753036168103,6.80057846,180.88,180.86,3.23]
[1753036168403,8.5561,180.88,180.86,3.23]
[1753036168605,3.03,180.87,180.86,3.06]
[1753036168804,8.5566,180.87,180.83,8.23156323]
[1753036169101,5.5266,180.87,180.85,3.06]
[1753036169301,5.5267,180.86,180.85,3.06]
[1753036169806,3.03,180.85,180.83,3.06]
[1753036170007,5.5273,180.84,180.83,3.06]
[1753036170298,8.5573,180.84,180.82,103.38]
[1753036170503,8.5573,180.84,180.82,106.44]
[1753036170703,3.03,180.83,180.82,106.44]
[1753036170899,3.03,180.83,180.82,3.06]
[1753036171406,8.5576,180.83,180.82,3.06]
[1753036172196,3.03,180.83,180.81,103.38]
[1753036172506,8.558,180.82,180.81,103.38]
[1753036172705,8.558,180.82,180.81,106.44]
[1753036173208,5.528,180.82,180.81,106.44]
[1753036173706,8.558,180.82,180.81,106.44]
[1753036174010,2.70396323,180.91,180.82,3.06]
[1753036174198,3.77246533,180.9,180.84,3.06]
[1753036174505,3.03,180.88,180.84,3.06]
[1753036175107,5.5267,180.87,180.84,3.06]
[1753036175310,8.5567,180.87,180.84,3.06]
[1753036175511,3.03,180.86,180.84,3.06]
[1753036175711,5.5267,180.87,180.84,3.06]
[1753036176010,8.5567,180.87,180.84,3.06]
[1753036178718,8.5567,180.87,180.84,5.5273]
[1753036179013,8.5567,180.87,180.85,3.06]
[1753036179517,8.5569,180.86,180.82,10.16225092]
[1753036179813,3.03,180.87,180.82,7.33831415]
[1753036180015,3.03,180.86,180.82,7.33831415]
[1753036180215,3.03,180.86,180.83,3.06]
[1753036180819,8.5567,180.86,180.83,8.5874]
[1753036181020,8.5567,180.86,180.84,3.06]
[1753036181722,5.5267,180.86,180.84,3.06]
[1753036182515,5.5267,180.86,180.84,5.76396323]
[1753036182821,3.03,180.92,180.85,7.69435092]
[1753036183019,3.03,180.92,180.87,2.70396323]
[1753036183220,3.03,180.88,180.87,3.06]
[1753036184723,5.526,180.89,180.87,3.06]
[1753036184923,8.556,180.89,180.87,3.06]
[1753036185116,8.556,180.89,180.88,3.06]
[1753036190527,5.5262,180.88,180.86,109.10396323]
[1753036190728,3.03,180.87,180.84,4.63435092]
[1753036190928,3.03,180.94,180.85,106.00396323]
[1753036191227,3.03,180.87,180.86,3.06]
[1753036194129,5.5259,180.89,180.86,3.06]
[1753036194329,3.03,180.88,180.86,3.06]
[1753036195731,3.03,180.88,180.87,3.06]
[1753036197937,5.5261,180.88,180.86,3.06]
[1753036198233,3.26,180.87,180.86,3.06]
[1753036200129,3.26,180.87,180.86,8.7667]
[1753036202130,3.26,180.87,180.86,3.24]
[1753036202335,3.26,180.87,180.85,103.3]
[1753036202733,3.26,180.84,180.81,4.64276628]
[1753036202930,3.26,180.84,180.78,10.58672951]
[1753036203140,5.5288,180.8,180.78,3.24]
[1753036203633,2.70396323,180.85,180.78,3.24]
[1753036203931,3.26,180.82,180.77,103.26]
[1753036204136,3.26,180.82,180.74,212.63880041]
[1753036204137,3.26,180.8,180.74,209.93483718]
[1753036204338,3.26,180.75,180.74,308.5520709]
[1753036204632,3.26,180.75,180.74,103.26]
[1753036204829,3.26,180.75,180.71,3.24]
[1753036205027,3.26,180.75,180.72,103.26]
[1753036205234,3.26,180.75,180.7,106.5]
[1753036205539,3.26,180.72,180.71,3.24]
[1753036205835,3.26,180.71,180.7,106.5]
[1753036206730,8.7913,180.71,180.7,103.26]
[1753036207937,3.26,180.71,180.7,106.5]
[1753036208639,8.7913,180.71,180.7,103.26]
[1753036212042,5.5311,180.72,180.7,103.26]
[1753036212235,8.7911,180.72,180.71,3.24]
[1753036212639,8.7913,180.71,180.7,106.5]
[1753036214339,3.26,180.71,180.7,106.5]
[1753036214835,3.26,180.71,180.7,103.26]
[1753036215340,8.7913,180.71,180.7,103.26]
[1753036216037,5.5318,180.7,180.68,3.24]
[1753036216239,3.26,180.69,180.68,106.54]
[1753036217044,8.7914,180.71,180.68,103.3]
[1753036217341,8.7914,180.71,180.69,3.24]
[1753036218345,8.7914,180.71,180.7,3.24]
[1753036219935,13.76106323,180.81,180.7,3.24]
[1753036220142,3.26,180.79,180.72,3.24]
[1753036220339,3.26,180.79,180.74,3.24]
[1753036220538,5.5297,180.77,180.76,3.24]
[1753036220749,8.7897,180.77,180.76,3.24]
[1753036222039,8.7897,180.77,180.75,103.3]
[1753036222252,3.26,180.75,180.69,3.24]
[1753036222550,2.70396323,180.81,180.68,103.98]
[1753036222551,3.26,180.72,180.68,103.98]
[1753036222846,8.7913,180.71,180.7,3.24]
[1753036223245,3.26,180.7,180.69,3.24]
[1753036223444,3.26,180.69,180.68,107.22]
[1753036223947,3.26,180.67,180.61,2.70396323]
[1753036224249,3.26,180.66,180.65,3.24]
[1753036224437,8.7932,180.65,180.62,3.24]
[1753036224638,8.7932,180.65,180.64,3.24]
[1753036224840,5.5337,180.64,180.61,2.70396323]
[1753036225049,3.26,180.63,180.62,107.2]
[1753036225453,3.26,180.63,180.62,103.96]
[1753036225744,5.5338,180.63,180.62,103.96]
[1753036225949,8.7938,180.63,180.62,103.96]
[1753036226144,8.7938,180.63,180.62,107.2]
[1753036226544,3.26,180.65,180.64,3.24]
[1753036226843,2.70396323,180.69,180.64,3.24]
[1753036227040,3.26,180.7,180.66,3.24]
[1753036227242,3.26,180.72,180.68,3.24]
[1753036227450,3.26,180.72,180.68,103.94]
[1753036227648,2.70396323,180.77,180.7,3.24]
[1753036227846,3.26,180.73,180.71,3.24]
[1753036228043,3.26,180.73,180.68,106.64396323]
[1753036228247,11.054,180.86,180.68,106.64396323]
[1753036228248,3.07,180.75,180.73,3.18]
[1753036228448,3.07,180.75,180.72,3.18]
[1753036228649,8.6007,180.73,180.72,3.18]
[1753036229047,3.07,180.76,180.68,106.64396323]
[1753036229252,5.5318,180.7,180.68,3.18]
[1753036229551,5.5318,180.7,180.69,104.04]
[1753036229751,5.5314,180.71,180.69,104.04]
[1753036229953,3.07,180.77,180.7,3.18]
[1753036230152,4.06686459,180.76,180.7,3.18]
[1753036230352,5.5309,180.73,180.7,3.18]
[1753036230755,5.5309,180.73,180.7,5.88396323]
[1753036230954,5.5309,180.73,180.71,3.18]
[1753036231155,5.5309,180.73,180.72,3.18]
[1753036231853,8.6009,180.73,180.72,3.18]
[1753036232558,3.07,180.72,180.62,7.82276628]
[1753036232757,3.07,180.67,180.62,107.24]
[1753036232955,3.07,180.64,180.62,104.06]
[1753036233150,3.07,180.65,180.62,107.24]
[1753036233461,8.6034,180.64,180.63,3.18]
[1753036234855,2.70396323,180.68,180.62,104.06]